lending/lending_fUSD_20241005
["ID","MTS","AMOUNT","RATE_DAILY","PERIOD"]
[339906254,1728147168461,-500.0,0.00042465,120]
[339906255,1728147168471,-500.0,0.00042465,120]
[339906256,1728147168480,-1147.66,0.00042465,120]
[339906257,1728147168490,-500.0,0.00042465,7]
[339906258,1728147168500,-1092.02,0.00042465,120]
[339906259,1728147168509,-500.0,0.00042465,120]
[339906260,1728147168519,-539.76461413,0.00042465,120]
[339906261,1728147168529,-455.54589189,0.00042465,120]
[339906262,1728147168538,-500.0,0.00042465,120]
[339906263,1728147168548,-605.99,0.00042465,120]
[339906264,1728147168557,-500.0,0.00042465,120]
[339906265,1728147168567,-500.0,0.00042465,120]
[339906266,1728147168576,-959.8,0.00042465,120]
[339906267,1728147168586,-597.47,0.00042465,120]
[339906268,1728147168596,-500.0,0.00042465,120]
[339906269,1728147168605,-500.0,0.00042465,120]
[339906270,1728147168615,-500.0,0.00042465,120]
[339906271,1728147168625,-200.0,0.00042465,7]
[339906272,1728147168699,-540.38100801,0.00042465,120]
[339906273,1728147168709,-500.0,0.00042465,120]
[339906274,1728147168718,-500.0,0.00042465,120]
[339906275,1728147168728,-500.0,0.00042465,120]
[339906276,1728147168737,-1254.87,0.00042465,120]
[339906277,1728147168747,-500.0,0.00042465,120]
[339906278,1728147168756,-500.0,0.00042465,120]
[339906279,1728147168766,-500.0,0.00042465,120]
[339906280,1728147168775,-1340.11,0.00042465,120]
[339906281,1728147168786,-500.0,0.00042465,120]
[339906282,1728147168796,-1185.33,0.00042465,120]
[339906283,1728147168805,-500.0,0.00042465,120]
[339906284,1728147168815,-500.0,0.00042465,120]
[339906285,1728147168824,-1060.42,0.00042465,120]
[339906286,1728147168834,-500.0,0.00042465,120]
[339906287,1728147168844,-1130.0,0.00042465,120]
[339906288,1728147168854,-952.13,0.00042465,120]
[339906289,1728147168863,-500.0,0.00042465,120]
[339906290,1728147168873,-865.66,0.00042465,120]
[339906291,1728147168882,-996.76,0.00042465,120]
[339906292,1728147168892,-1128.68,0.00042465,120]
[339906293,1728147168902,-585.41,0.00042465,120]
[339906294,1728147168912,-1208.3,0.00042465,120]
[339906295,1728147168921,-500.0,0.00042465,120]
[339906296,1728147168930,-553.16815393,0.00042465,120]
[339906297,1728147168940,-999.01,0.00042465,120]
[339906298,1728147168949,-500.0,0.00042465,120]
[339906299,1728147168959,-508.91,0.00042465,120]
[339906300,1728147168969,-500.0,0.00042465,120]
[339906301,1728147168978,-868.76,0.00042465,120]
[339906302,1728147168988,-1096.8,0.00042465,120]
[339906303,1728147168997,-613.51,0.00042465,120]
[339906304,1728147169006,-930.7,0.00042465,120]
[339906305,1728147169016,-500.0,0.00042465,120]
[339906306,1728147169026,-646.65,0.00042465,120]
[339906307,1728147169036,-1272.74,0.00042465,120]
[339906308,1728147169045,-504.49,0.00042465,120]
[339906309,1728147169055,-937.71,0.00042465,120]
[339906310,1728147169065,-845.63,0.00042465,120]
[339906311,1728147169074,-500.0,0.00042465,120]
[339906312,1728147169083,-1381.8,0.00042465,120]
[339906313,1728147169092,-500.0,0.00042465,120]
[339906314,1728147169102,-500.0,0.00042465,120]
[339906315,1728147169112,-500.0,0.00042465,120]
[339906316,1728147169122,-500.0,0.00042465,120]
[339906317,1728147169134,-741.0,0.00042465,120]
[339906318,1728147169144,-500.0,0.00042465,120]
[339906319,1728147169153,-982.24,0.00042465,120]
[339906320,1728147169163,-500.0,0.00042465,120]
[339906321,1728147169172,-1105.62,0.00042465,120]
[339906322,1728147169181,-563.83869472,0.00042465,120]
[339906323,1728147169191,-877.47,0.00042465,120]
[339906324,1728147169201,-994.36,0.00042465,120]
[339906325,1728147169210,-500.0,0.00042465,120]
[339906326,1728147169219,-1035.51,0.00042465,120]
[339906327,1728147169229,-500.0,0.00042465,120]
[339906328,1728147169238,-500.0,0.00042465,120]
[339906329,1728147169247,-989.87,0.00042465,120]
[339906330,1728147169257,-500.0,0.00042465,120]
[339906331,1728147169267,-500.0,0.00042465,120]
[339906332,1728147169277,-871.55,0.00042465,120]
[339906333,1728147169287,-1333.03,0.00042465,120]
[339906334,1728147169297,-925.19,0.00042465,120]
[339906335,1728147169307,-500.0,0.00042465,120]
[339906336,1728147169317,-500.0,0.00042465,120]
[339906337,1728147169327,-889.77,0.00042465,120]
[339906338,1728147169336,-1502.02,0.00042465,120]
[339906339,1728147169346,-600.24,0.00042465,120]
[339906340,1728147169355,-717.54,0.00042465,120]
[339906341,1728147169364,-963.18,0.00042465,120]
[339906342,1728147169374,-551.7,0.00042465,120]
[339906343,1728147169383,-1246.88,0.00042465,120]
[339906344,1728147169392,-584.17,0.00042465,120]
[339906345,1728147169402,-518.72,0.00042465,120]
[339906346,1728147169412,-500.0,0.00042465,120]
[339906347,1728147169422,-500.0,0.00042465,120]
[339906348,1728147169434,-1465.78,0.00042465,120]
[339906349,1728147169443,-1472.61,0.00042465,120]
[339906350,1728147169452,-500.0,0.00042465,120]
[339906351,1728147169461,-848.55,0.00042465,120]
[339906352,1728147169472,-214.67,0.00042465,120]
[339906353,1728147169481,-500.0,0.00042465,120]
[339906354,1728147169491,-779.41,0.00042465,120]
[339906355,1728147169501,-500.0,0.00042465,120]
[339906356,1728147169510,-777.28,0.00042465,120]
[339906357,1728147169520,-500.0,0.00042465,120]
[339906358,1728147169530,-402.22190316,0.00042465,120]
[339906359,1728147169539,-1683.21,0.00042465,120]
[339906360,1728147169549,-1078.6,0.00042465,120]
[339906361,1728147169558,-1725.49,0.00042465,120]
[339906362,1728147169567,-587.6,0.00042465,120]
[339906363,1728147169577,-659.83,0.00042465,120]
[339906364,1728147169586,-600.74,0.00042465,120]
[339906365,1728147169596,-706.43,0.00042465,120]
[339906366,1728147169605,-1054.81,0.00042465,120]
[339906367,1728147169614,-500.0,0.00042465,120]
[339906368,1728147169624,-1280.81,0.00042465,120]
[339906369,1728147169633,-500.0,0.00042465,120]
[339906370,1728147169642,-500.0,0.00042465,120]
[339906371,1728147169652,-1363.15,0.00042465,120]
[339906372,1728147169662,-500.0,0.00042465,120]
[339906373,1728147169672,-500.0,0.00042465,120]
[339906374,1728147169681,-500.0,0.00042465,120]
[339906375,1728147169691,-635.63386996,0.00042465,120]
[339906376,1728147169701,-905.57,0.00042465,120]
[339906377,1728147169710,-500.0,0.00042465,120]
[339906378,1728147169720,-1284.12,0.00042465,120]
[339906379,1728147169729,-1235.27,0.00042465,120]
[339906380,1728147169739,-500.0,0.00042465,120]
[339906381,1728147169748,-500.0,0.00042465,120]
[339906382,1728147169758,-637.05,0.00042465,120]
[339906383,1728147169769,-1285.68,0.00042465,120]
[339906384,1728147169778,-503.25,0.00042465,120]
[339906385,1728147169789,-500.0,0.00042465,120]
[339906386,1728147169799,-500.0,0.00042465,120]
[339906387,1728147169809,-938.91,0.00042465,120]
[339906388,1728147169819,-500.0,0.00042465,120]
[339906389,1728147169829,-1214.24,0.00042465,120]
[339906390,1728147169839,-669.13,0.00042465,120]
[339906391,1728147169849,-950.76,0.00042465,120]
[339906392,1728147169860,-1555.77,0.00042465,120]
[339906393,1728147169870,-500.0,0.00042465,120]
[339906394,1728147169880,-1046.87,0.00042465,120]
[339906395,1728147169890,-500.0,0.00042465,120]
[339906396,1728147169900,-748.92797059,0.00042465,120]
[339906397,1728147169911,-766.5,0.00042465,120]
[339906398,1728147169922,-1076.33,0.00042465,120]
[339906399,1728147169932,-500.0,0.00042465,120]
[339906400,1728147169941,-500.0,0.00042465,120]
[339906401,1728147169950,-773.6,0.00042465,120]
[339906402,1728147169960,-500.0,0.00042465,120]
[339906403,1728147169969,-956.46,0.00042465,120]
[339906404,1728147169979,-273.36971336,0.00042465,120]
[339906405,1728147169988,-500.0,0.00042465,120]
[339906406,1728147169998,-500.0,0.00042465,120]
[339906407,1728147170007,-1442.35,0.00042465,120]
[339906408,1728147170017,-1211.84,0.00042465,120]
[339906409,1728147170026,-500.0,0.00042465,120]
[339906410,1728147170036,-658.69,0.00042465,120]
[339906411,1728147170045,-1361.72,0.00042465,24]
[339906412,1728147170055,-1120.5,0.00042465,120]
[339906413,1728147170066,-500.0,0.00042465,120]
[339906414,1728147170075,-500.0,0.00042465,120]
[339906415,1728147170085,-500.0,0.00042465,120]
[339906416,1728147170094,-1128.3,0.00042465,120]
[339906417,1728147170104,-500.0,0.00042465,120]
[339906418,1728147170113,-500.0,0.00042465,120]
[339906419,1728147170123,-627.25,0.00042465,120]
[339906420,1728147170132,-723.77,0.00042465,120]
[339906421,1728147170141,-317.1068916,0.00042465,120]
[339906422,1728147170151,-1143.9,0.00042465,120]
[339906423,1728147170160,-502.75,0.00042465,120]
[339906424,1728147170168,-500.0,0.00042465,120]
[339906425,1728147170178,-1054.07,0.00042465,120]
[339906426,1728147170187,-1458.38,0.00042465,120]
[339906427,1728147170196,-680.05,0.00042465,120]
[339906428,1728147170205,-2308.66,0.00042465,120]
[339906429,1728147170214,-526.17,0.00042465,120]
[339906430,1728147170223,-958.76,0.00042465,120]
[339906431,1728147170232,-500.0,0.00042465,120]
[339906432,1728147170242,-521.35,0.00042465,120]
[339906433,1728147170251,-500.0,0.00042465,120]
[339906434,1728147170261,-772.75,0.00042465,120]
[339906435,1728147170270,-957.22,0.00042465,120]
[339906436,1728147170280,-1182.56,0.00042465,120]
[339906437,1728147170298,-658.49,0.00042465,120]
[339906438,1728147170307,-500.0,0.00042465,120]
[339906439,1728147170317,-500.0,0.00042465,120]
[339906440,1728147170326,-500.0,0.00042465,120]
[339906441,1728147170335,-500.0,0.00042465,120]
[339906442,1728147170345,-764.47,0.00042465,120]
[339906443,1728147170354,-294.84951825,0.00042465,120]
[339906444,1728147170363,-1230.05,0.00042465,120]
[339906445,1728147170372,-513.82110726,0.00042465,120]
[339906446,1728147170382,-500.0,0.00042465,120]
[339906447,1728147170391,-872.43,0.00042465,120]
[339906448,1728147170401,-500.0,0.00042465,120]
[339906449,1728147170410,-611.65,0.00042465,120]
[339906450,1728147170420,-842.7,0.00042465,120]
[339906451,1728147170430,-500.0,0.00042465,120]
[339906452,1728147170439,-500.0,0.00042465,120]
[339906453,1728147170448,-821.45,0.00042465,120]
[339906454,1728147170457,-1020.54,0.00042465,120]
[339906455,1728147170467,-315.38082718,0.00042465,120]
[339906456,1728147170478,-508.95,0.00042465,120]
[339906457,1728147170490,-500.0,0.00042465,120]
[339906458,1728147170500,-500.0,0.00042465,120]
[339906459,1728147170510,-500.0,0.00042465,120]
[339906460,1728147170519,-642.67566208,0.00042465,120]
[339906461,1728147170529,-1095.31,0.00042465,120]
[339906462,1728147170539,-500.0,0.00042465,120]
[339906463,1728147170549,-1129.38,0.00042465,120]
[339906464,1728147170558,-500.0,0.00042465,120]
[339906465,1728147170567,-500.0,0.00042465,120]
[339906466,1728147170577,-500.0,0.00042465,120]
[339906467,1728147170587,-500.0,0.00042465,120]
[339906468,1728147170596,-500.0,0.00042465,120]
[339906469,1728147170606,-794.7,0.00042465,120]
[339906470,1728147170616,-500.0,0.00042465,120]
[339906471,1728147170626,-830.85,0.00042465,120]
[339906472,1728147170635,-500.0,0.00042465,120]
[339906473,1728147170645,-1027.89,0.00042465,120]
[339906474,1728147170655,-500.0,0.00042465,120]
[339906475,1728147170665,-500.0,0.00042465,120]
[339906476,1728147170674,-1487.21,0.00042465,120]
[339906477,1728147170684,-1056.64,0.00042465,120]
[339906478,1728147170694,-500.0,0.00042465,120]
[339906479,1728147170704,-500.0,0.00042465,120]
[339906480,1728147170713,-500.0,0.00042465,120]
[339906481,1728147170723,-500.0,0.00042465,120]
[339906482,1728147170733,-966.23,0.00042465,120]
[339906483,1728147170742,-1402.9,0.00042465,120]
[339906484,1728147170752,-155.637596,0.00042465,120]
[339906485,1728147170761,-500.0,0.00042465,120]
[339906486,1728147170771,-500.0,0.00042465,120]
[339906487,1728147170780,-500.0,0.00042465,120]
[339906488,1728147170790,-500.0,0.00042465,120]
[339906489,1728147170799,-605.78,0.00042465,120]
[339906490,1728147170809,-500.0,0.00042465,120]
[339906491,1728147170818,-534.83,0.00042465,120]
[339906492,1728147170828,-1181.15,0.00042465,120]
[339906493,1728147170837,-500.0,0.00042465,120]
[339906494,1728147170847,-540.58,0.00042465,120]
[339906495,1728147170856,-567.65,0.00042465,120]
[339906496,1728147170865,-602.72,0.00042465,120]
[339906497,1728147170875,-942.98,0.00042465,120]
[339906498,1728147170884,-500.0,0.00042465,120]
[339906499,1728147170894,-739.94,0.00042465,120]
[339906500,1728147170904,-500.0,0.00042465,120]
[339906501,1728147170913,-500.0,0.00042465,120]
[339906502,1728147170923,-1122.04,0.00042465,120]
[339906503,1728147170933,-500.0,0.00042465,120]
[339906504,1728147170943,-1176.15,0.00042465,120]
[339906505,1728147170953,-960.92,0.00042465,120]
[339906506,1728147170962,-500.0,0.00042465,120]
[339906507,1728147170971,-1087.37,0.00042465,120]
[339906508,1728147170980,-500.0,0.00042465,120]
[339906509,1728147170990,-548.14,0.00042465,120]
[339906510,1728147170999,-500.0,0.00042465,120]
[339906511,1728147171009,-500.0,0.00042465,120]
[339906512,1728147171019,-255.38607,0.00042465,120]
[339906513,1728147171028,-808.84,0.00042465,120]
[339906514,1728147171038,-894.57,0.00042465,120]
[339906515,1728147171047,-500.0,0.00042465,120]
[339906516,1728147171057,-500.0,0.00042465,120]
[339906517,1728147171066,-744.22,0.00042465,120]
[339906518,1728147171076,-557.42161753,0.00042465,120]
[339906519,1728147171085,-795.88,0.00042465,120]
[339906520,1728147171095,-1106.31,0.00042465,120]
[339906521,1728147171104,-500.0,0.00042465,120]
[339906522,1728147171114,-719.91,0.00042465,120]
[339906523,1728147171123,-500.0,0.00042465,120]
[339906524,1728147171132,-912.73,0.00042465,120]
[339906525,1728147171141,-519.73,0.00042465,120]
[339906526,1728147171151,-1177.68,0.00042465,120]
[339906527,1728147171160,-780.08,0.00042465,14]
[339906528,1728147171169,-750.93,0.00042465,120]
[339906529,1728147171178,-789.28,0.00042465,120]
[339906530,1728147171187,-669.75,0.00042465,120]
[339906531,1728147171196,-704.169704,0.00042465,120]
[339906532,1728147171205,-1092.22,0.00042465,120]
[339906533,1728147171215,-535.24,0.00042465,120]
[339906534,1728147171224,-1378.36,0.00042465,120]
[339906535,1728147171233,-745.48,0.00042465,120]
[339906536,1728147171242,-431.59,0.00042465,120]
[339906537,1728147171251,-500.0,0.00042465,120]
[339906538,1728147171260,-500.0,0.00042465,120]
[339906539,1728147171269,-1306.31,0.00042465,120]
[339906540,1728147171278,-500.0,0.00042465,120]
[339906541,1728147171289,-524.51,0.00042465,120]
[339906542,1728147171298,-500.0,0.00042465,120]
[339906543,1728147171307,-513.93,0.00042465,120]
[339906544,1728147171317,-462.93431964,0.00042465,120]
[339906545,1728147171326,-645.77,0.00042465,120]
[339906546,1728147171335,-833.87,0.00042465,120]
[339906547,1728147171345,-500.0,0.00042465,120]
[339906548,1728147171354,-1307.93,0.00042465,120]
[339906549,1728147171363,-500.0,0.00042465,120]
[339906550,1728147171373,-1199.16,0.00042465,120]
[339906551,1728147171382,-500.0,0.00042465,120]
[339906552,1728147171392,-500.0,0.00042465,120]
[339906553,1728147171401,-500.0,0.00042465,120]
[339906554,1728147171410,-500.0,0.00042465,120]
[339906555,1728147171423,-985.84,0.00042465,120]
[339906556,1728147171432,-500.0,0.00042465,120]
[339906557,1728147171441,-1049.3,0.00042465,120]
[339906558,1728147171451,-1294.19,0.00042465,120]
[339906559,1728147171460,-500.0,0.00042465,120]
[339906560,1728147171470,-793.27,0.00042465,120]
[339906561,1728147171480,-500.0,0.00042465,120]
[339906562,1728147171489,-599.88553336,0.00042465,120]
[339906563,1728147171499,-500.0,0.00042465,120]
[339906564,1728147171509,-500.0,0.00042465,120]
[339906565,1728147171518,-2888.1,0.00042465,120]
[339906566,1728147171528,-687.14,0.00042465,120]
[339906567,1728147171539,-500.0,0.00042465,120]
[339906568,1728147171549,-989.98,0.00042465,120]
[339906569,1728147171558,-500.0,0.00042465,120]
[339906570,1728147171568,-1432.95,0.00042465,120]
[339906571,1728147171577,-550.68,0.00042465,120]
[339906572,1728147171587,-724.21,0.00042465,120]
[339906573,1728147171596,-543.28,0.00042465,120]
[339906574,1728147171605,-500.0,0.00042465,120]
[339906575,1728147171614,-753.39,0.00042465,120]
[339906576,1728147171624,-807.23,0.00042465,120]
[339906577,1728147171634,-500.0,0.00042465,120]
[339906578,1728147171644,-500.0,0.00042465,120]
[339906579,1728147171654,-708.64,0.00042465,120]
[339906580,1728147171663,-562.5,0.00042465,120]
[339906581,1728147171673,-532.40264491,0.00042465,120]
[339906582,1728147171683,-500.0,0.00042465,120]
[339906583,1728147171693,-500.0,0.00042465,120]
[339906584,1728147171702,-687.72,0.00042465,120]
[339906585,1728147171712,-1195.82,0.00042465,120]
[339906586,1728147171722,-905.32,0.00042465,7]
[339906587,1728147171732,-968.05,0.00042465,120]
[339906588,1728147171742,-1289.36,0.00042465,120]
[339906589,1728147171752,-1417.19,0.00042465,120]
[339906590,1728147171761,-763.68,0.00042465,120]
[339906591,1728147171771,-500.0,0.00042465,120]
[339906592,1728147171780,-1687.35,0.00042465,120]
[339906593,1728147171791,-888.0,0.00042465,120]
[339906594,1728147171800,-785.36,0.00042465,120]
[339906595,1728147171809,-500.0,0.00042465,120]
[339906596,1728147171819,-500.0,0.00042465,120]
[339906597,1728147171829,-1179.64,0.00042465,120]
[339906598,1728147171838,-582.36,0.00042465,120]
[339906599,1728147171848,-500.0,0.00042465,120]
[339906600,1728147171857,-643.53,0.00042465,120]
[339906601,1728147171866,-1536.92,0.00042465,120]
[339906602,1728147171876,-1213.33,0.00042465,120]
[339906603,1728147171886,-533.33,0.00042465,120]
[339906604,1728147171895,-711.86,0.00042465,120]
[339906605,1728147171904,-500.0,0.00042465,120]
[339906606,1728147171914,-1142.18,0.00042465,120]
[339906607,1728147171924,-786.32,0.00042465,120]
[339906608,1728147171933,-1479.11,0.00042465,120]
[339906609,1728147171942,-500.0,0.00042465,120]
[339906610,1728147171952,-500.0,0.00042465,120]
[339906611,1728147171961,-649.26,0.00042465,120]
[339906612,1728147171970,-903.52,0.00042465,120]
[339906613,1728147171979,-500.0,0.00042465,120]
[339906614,1728147171988,-500.0,0.00042465,120]
[339906615,1728147171997,-500.0,0.00042465,120]
[339906616,1728147172005,-642.95,0.00042465,120]
[339906617,1728147172014,-915.1,0.00042465,120]
[339906618,1728147172023,-500.0,0.00042465,120]
[339906619,1728147172032,-500.0,0.00042465,120]
[339906620,1728147172042,-1032.8,0.00042465,120]
[339906621,1728147172051,-500.0,0.00042465,120]
[339906622,1728147172060,-500.0,0.00042465,120]
[339906623,1728147172069,-931.55,0.00042465,120]
[339906624,1728147172078,-1521.03,0.00042465,120]
[339906625,1728147172087,-500.0,0.00042465,120]
[339906626,1728147172096,-901.49,0.00042465,120]
[339906627,1728147172105,-500.0,0.00042465,120]
[339906628,1728147172114,-1061.61,0.00042465,120]
[339906629,1728147172123,-1304.21,0.00042465,120]
[339906630,1728147172133,-701.97,0.00042465,120]
[339906631,1728147172142,-1011.56,0.00042465,120]
[339906632,1728147172151,-534.36,0.00042465,120]
[339906633,1728147172160,-589.66,0.00042465,120]
[339906634,1728147172169,-500.0,0.00042465,120]
[339906635,1728147172178,-512.82,0.00042465,120]
[339906636,1728147172186,-500.0,0.00042465,120]
[339906637,1728147172196,-500.0,0.00042465,120]
[339906638,1728147172206,-1198.94,0.00042465,120]
[339906639,1728147172215,-500.0,0.00042465,120]
[339906640,1728147172225,-836.31,0.00042465,120]
[339906641,1728147172234,-714.05,0.00042465,120]
[339906642,1728147172244,-908.97,0.00042465,120]
[339906643,1728147172254,-500.0,0.00042465,120]
[339906644,1728147172263,-787.9,0.00042465,120]
[339906645,1728147172273,-500.0,0.00042465,120]
[339906646,1728147172283,-530.83,0.00042465,120]
[339906647,1728147172291,-1485.49,0.00042465,120]
[339906648,1728147172300,-500.0,0.00042465,120]
[339906649,1728147172309,-500.0,0.00042465,120]
[339906650,1728147172319,-500.0,0.00042465,120]
[339906651,1728147172328,-763.04,0.00042465,120]
[339906652,1728147172338,-518.08,0.00042465,120]
[339906653,1728147172347,-500.0,0.00042465,120]
[339906654,1728147172356,-500.0,0.00042465,120]
[339906655,1728147172366,-586.88653839,0.00042465,120]
[339906656,1728147172376,-563.43,0.00042465,120]
[339906657,1728147172386,-612.29,0.00042465,120]
[339906658,1728147172395,-500.0,0.00042465,120]
[339906659,1728147172405,-822.39,0.00042465,120]
[339906660,1728147172414,-500.0,0.00042465,120]
[339906661,1728147172424,-1306.65,0.00042465,120]
[339906662,1728147172433,-1233.21,0.00042465,120]
[339906663,1728147172442,-583.48,0.00042465,120]
[339906664,1728147172452,-500.0,0.00042465,120]
[339906665,1728147172461,-868.45,0.00042465,120]
[339906666,1728147172470,-732.59,0.00042465,120]
[339906667,1728147172479,-500.0,0.00042465,120]
[339906668,1728147172489,-1321.45,0.00042465,120]
[339906669,1728147172498,-528.8,0.00042465,120]
[339906670,1728147172507,-658.55,0.00042465,120]
[339906671,1728147172516,-500.0,0.00042465,120]
[339906672,1728147172525,-500.0,0.00042465,120]
[339906673,1728147172535,-500.0,0.00042465,120]
[339906674,1728147172544,-500.0,0.00042465,120]
[339906675,1728147172554,-377.10576363,0.00042465,120]
[339906676,1728147172563,-993.81,0.00042465,120]
[339906677,1728147172573,-500.0,0.00042465,120]
[339906678,1728147172582,-500.0,0.00042465,120]
[339906679,1728147172591,-500.0,0.00042465,120]
[339906680,1728147172600,-500.0,0.00042465,120]
[339906681,1728147172609,-953.14,0.00042465,120]
[339906682,1728147172618,-1392.91,0.00042465,120]
[339906683,1728147172628,-500.0,0.00042465,120]
[339906684,1728147172637,-694.83,0.00042465,120]
[339906685,1728147172647,-500.0,0.00042465,120]
[339906686,1728147172658,-500.0,0.00042465,120]
[339906687,1728147172667,-500.0,0.00042465,120]
[339906688,1728147172677,-500.0,0.00042465,120]
[339906689,1728147172686,-500.0,0.00042465,120]
[339906690,1728147172696,-698.41,0.00042465,120]
[339906691,1728147172705,-771.14,0.00042465,120]
[339906692,1728147172714,-204.31950374,0.00042465,120]
[339906693,1728147172724,-500.0,0.00042465,120]
[339906694,1728147172734,-885.57,0.00042465,120]
[339906695,1728147172743,-1011.8,0.00042465,120]
[339906696,1728147172753,-563.02,0.00042465,120]
[339906697,1728147172867,-702.92,0.00042465,120]
[339906698,1728147172886,-1565.99,0.00042465,120]
[339906699,1728147172897,-1294.33,0.00042465,120]
[339906700,1728147172907,-690.04,0.00042465,120]
[339906701,1728147172917,-918.37,0.00042465,120]
[339906702,1728147172927,-500.0,0.00042465,120]
[339906703,1728147172936,-894.45,0.00042465,120]
[339906704,1728147172947,-666.23,0.00042465,120]
[339906705,1728147172957,-500.0,0.00042465,120]
[339906706,1728147172967,-500.0,0.00042465,120]
[339906707,1728147172976,-500.0,0.00042465,120]
[339906708,1728147172986,-500.0,0.00042465,120]
[339906709,1728147172996,-762.45,0.00042465,120]
[339906710,1728147173006,-500.0,0.00042465,120]
[339906711,1728147173015,-588.86,0.00042465,120]
[339906712,1728147173025,-1037.04,0.00042465,120]
[339906713,1728147173036,-729.96,0.00042465,120]
[339906714,1728147173046,-500.0,0.00042465,120]
[339906715,1728147173056,-500.0,0.00042465,120]
[339906716,1728147173066,-500.0,0.00042465,120]
[339906717,1728147173076,-500.0,0.00042465,120]
[339906718,1728147173086,-922.09,0.00042465,120]
[339906719,1728147173096,-500.0,0.00042465,120]
[339906720,1728147173106,-303.41518103,0.00042465,120]
[339906721,1728147173116,-500.0,0.00042465,120]
[339906722,1728147173126,-500.0,0.00042465,120]
[339906723,1728147173136,-1207.02,0.00042465,120]
[339906724,1728147173145,-1060.1,0.00042465,120]
[339906725,1728147173156,-500.0,0.00042465,120]
[339906726,1728147173166,-500.0,0.00042465,120]
[339906727,1728147173176,-269.15614088,0.00042465,120]
[339906728,1728147173187,-500.0,0.00042465,120]
[339906729,1728147173197,-500.0,0.00042465,120]
[339906730,1728147173206,-500.0,0.00042465,120]
[339906731,1728147173216,-501.25,0.00042465,120]
[339906732,1728147173225,-668.81,0.00042465,120]
[339906733,1728147173235,-500.0,0.00042465,120]
[339906734,1728147173245,-525.19,0.00042465,120]
[339906735,1728147173254,-500.0,0.00042465,120]
[339906736,1728147173264,-648.61,0.00042465,120]
[339906737,1728147173273,-500.0,0.00042465,120]
[339906738,1728147173283,-500.0,0.00042465,120]
[339906739,1728147173292,-500.0,0.00042465,120]
[339906740,1728147173302,-500.0,0.00042465,120]
[339906741,1728147173311,-1480.12,0.00042465,120]
[339906742,1728147173323,-500.0,0.00042465,120]
[339906743,1728147173333,-500.0,0.00042465,120]
[339906744,1728147173342,-1830.42,0.00042465,120]
[339906745,1728147173352,-500.0,0.00042465,120]
[339906746,1728147173361,-1094.29,0.00042465,120]
[339906747,1728147173371,-692.2,0.00042465,120]
[339906748,1728147173381,-1171.31,0.00042465,120]
[339906749,1728147173391,-500.0,0.00042465,120]
[339906750,1728147173400,-500.0,0.00042465,120]
[339906751,1728147173410,-980.64,0.00042465,120]
[339906752,1728147173424,-993.33,0.00042465,120]
[339906753,1728147173433,-500.0,0.00042465,120]